Workbook

Sheet Instructions
A1: Instructions:
A2: - Be sure macros are enabled (the "Score" column in the "Your Data" tab should have a number, and not "NAME?" error)
A3: - From Google Analytics, run a traffic report for the last six months (Behavior > Site Content > All Pages)
A4: - You may also wish to filter your GA report on Blog content only, and show 100 rows
A5: - Export GA report and open as Excel file
A6: - Copy the following columns from your GA report into the "Your Data" tab of this file:
A7: PAGE
A8: PAGEVIEWS
A9: TIME ON PAGE
A10: BOUNCE RATE
A11: - Fill in PUBLISH DATE column by visiting each blog post and entering date it was published
A12: - Fill in WORD COUNT column by visiting copying each blog post into Microsoft Word and getting word count
A13: - Score will calculate automatically
A14: Content scored in GREEN is your highest-performing content
A15: This represents the biggest areas of opportunity for optimization and improvement
A16: You can tweak the relative values of all the scoring factors on the "Metrics Parameters" tab of this sheet
A19: The Media Shower platform pulls all these numbers for you, in one convenient dashboard.
A20: Sign up for a free trial, install our tracking code, and see for yourself!
A21: http://www.mediashower.com

Sheet Your Data
A1: Page | B1: Publish Date | C1: Score | D1: Post Age (d) | E1: Page Views | F1: Conversions | G1: Time on Page | H1: Words | I1: Bounce Rate | J1: Read Coverage | K1: Page View Score | L1: Click Score | M1: Read Score | N1: Bounce Score
A2: /blog/the-ultimate-list-of-b2b-content-marketing-ideas/ | B2: 2017-03-07 | C2: =K2+L2+M2+Table1[[#This Row],[Bounce Score]] ->  | D2: =NOW()-B2 -> 210.3917279 | E2: 7052 | F2: 460 | G2: 217.7313433 | H2: 800 | I2: 0.65 | J2: =MIN(G2/(H2/200*60),1) -> 0.9072139303 | K2: =PageViewScore(Table1[[#This Row],[Page Views]],view_max_value,view_rate)*SigDecay(D2,time_onset,time_decay,time_weight,1,0) ->  | L2: =ActionScore(Table1[[#This Row],[Conversions]],clicks_max_value,clicks_rate,clicks_base_value) -> 91.15913556 | M2: =J2*read_weight -> 9.072139303 | N2: =(1-Table1[[#This Row],[Bounce Rate]])*bounce_weight -> 7
A3: /blog/how-to-create-a-content-marketing-plan/ | B3: 2017-05-26 | C3: =K3+L3+M3+Table1[[#This Row],[Bounce Score]] ->  | D3: 130.3917279 | E3: 12290 | F3: 270 | G3: 286.8111111 | H3: 1700 | I3: 0.8942937325 | J3: 0.5623747277 | K3: =PageViewScore(Table1[[#This Row],[Page Views]],view_max_value,view_rate)*SigDecay(D3,time_onset,time_decay,time_weight,1,0) ->  | L3: =ActionScore(Table1[[#This Row],[Conversions]],clicks_max_value,clicks_rate,clicks_base_value) -> 85.89341693 | M3: 5.623747277 | N3: =(1-Table1[[#This Row],[Bounce Rate]])*bounce_weight -> 2.114125351
A4: /blog/top-10-content-writing-services-rated-and-reviewed/ | B4: 2016-01-15 | C4: =K4+L4+M4+Table1[[#This Row],[Bounce Score]] ->  | D4: 627.3917279 | E4: 7640 | F4: 250 | G4: 210.24 | H4: 1900 | I4: 0.6858237548 | J4: 0.3688421053 | K4: =PageViewScore(Table1[[#This Row],[Page Views]],view_max_value,view_rate)*SigDecay(D4,time_onset,time_decay,time_weight,1,0) ->  | L4: =ActionScore(Table1[[#This Row],[Conversions]],clicks_max_value,clicks_rate,clicks_base_value) -> 84.94983278 | M4: 3.688421053 | N4: =(1-Table1[[#This Row],[Bounce Rate]])*bounce_weight -> 6.283524904
A5: /blog/the-ultimate-list-of-content-marketing-analytics-tools/ | B5: 2017-02-24 | C5: =K5+L5+M5+Table1[[#This Row],[Bounce Score]] ->  | D5: 221.3917279 | E5: 4956 | F5: 190 | G5: 240.5540541 | H5: 328 | I5: 0.8931750742 | J5: 1 | K5: =PageViewScore(Table1[[#This Row],[Page Views]],view_max_value,view_rate)*SigDecay(D5,time_onset,time_decay,time_weight,1,0) ->  | L5: =ActionScore(Table1[[#This Row],[Conversions]],clicks_max_value,clicks_rate,clicks_base_value) -> 81.17154812 | M5: 10 | N5: =(1-Table1[[#This Row],[Bounce Rate]])*bounce_weight -> 2.136498516
A6: /blog/the-comprehensive-guide-to-lead-generation-tools/ | B6: 2017-07-12 | C6: =K6+L6+M6+Table1[[#This Row],[Bounce Score]] ->  | D6: 83.39172789 | E6: 6078 | F6: 90 | G6: 198.5227273 | H6: 4384 | I6: 0.9324324324 | J6: 0.150944896 | K6: =PageViewScore(Table1[[#This Row],[Page Views]],view_max_value,view_rate)*SigDecay(D6,time_onset,time_decay,time_weight,1,0) ->  | L6: =ActionScore(Table1[[#This Row],[Conversions]],clicks_max_value,clicks_rate,clicks_base_value) -> 67.62589928 | M6: 1.50944896 | N6: =(1-Table1[[#This Row],[Bounce Rate]])*bounce_weight -> 1.351351351
A7: /blog/the-5-most-viral-buzzfeed-posts-of-all-time/ | B7: 2013-06-24 | C7: =K7+L7+M7+Table1[[#This Row],[Bounce Score]] ->  | D7: 1562.391728 | E7: 1350 | F7: 12 | G7: 53.6 | H7: 400 | I7: 0.9769230769 | J7: 0.4466666667 | K7: =PageViewScore(Table1[[#This Row],[Page Views]],view_max_value,view_rate)*SigDecay(D7,time_onset,time_decay,time_weight,1,0) ->  | L7: =ActionScore(Table1[[#This Row],[Conversions]],clicks_max_value,clicks_rate,clicks_base_value) -> 26.2295082 | M7: 4.466666667 | N7: =(1-Table1[[#This Row],[Bounce Rate]])*bounce_weight -> 0.4615384615
A8: /blog/the-5-most-viral-posts-on-reddit/ | B8: 2013-05-31 | C8: =K8+L8+M8+Table1[[#This Row],[Bounce Score]] ->  | D8: 1586.391728 | E8: 380 | F8: 8 | G8: 732.5 | H8: 733 | I8: 0.9444444444 | J8: 1 | K8: =PageViewScore(Table1[[#This Row],[Page Views]],view_max_value,view_rate)*SigDecay(D8,time_onset,time_decay,time_weight,1,0) ->  | L8: =ActionScore(Table1[[#This Row],[Conversions]],clicks_max_value,clicks_rate,clicks_base_value) -> 21.05263158 | M8: 10 | N8: =(1-Table1[[#This Row],[Bounce Rate]])*bounce_weight -> 1.111111111
A9: /blog/how-to-write-a-good-article-pitch/ | B9: 2015-12-11 | C9: =K9+L9+M9+Table1[[#This Row],[Bounce Score]] ->  | D9: 662.3917279 | E9: 299 | F9: 6 | G9: 202.5 | H9: 1448 | I9: 0.9333333333 | J9: 0.466160221 | K9: =PageViewScore(Table1[[#This Row],[Page Views]],view_max_value,view_rate)*SigDecay(D9,time_onset,time_decay,time_weight,1,0) ->  | L9: =ActionScore(Table1[[#This Row],[Conversions]],clicks_max_value,clicks_rate,clicks_base_value) -> 18.18181818 | M9: 4.66160221 | N9: =(1-Table1[[#This Row],[Bounce Rate]])*bounce_weight -> 1.333333333
A10: /blog/good-content-in-boring-industries-the-car-loan-calculator/ | B10: 2014-02-06 | C10: =K10+L10+M10+Table1[[#This Row],[Bounce Score]] ->  | D10: 1335.391728 | E10: 280 | F10: 2 | G10: 8.8 | H10: 429 | I10: 0.8260869565 | J10: 0.06837606838 | K10: =PageViewScore(Table1[[#This Row],[Page Views]],view_max_value,view_rate)*SigDecay(D10,time_onset,time_decay,time_weight,1,0) ->  | L10: =ActionScore(Table1[[#This Row],[Conversions]],clicks_max_value,clicks_rate,clicks_base_value) -> 11.76470588 | M10: 0.6837606838 | N10: =(1-Table1[[#This Row],[Bounce Rate]])*bounce_weight -> 3.47826087
A11: /blog/value-of-content-marketing/ | B11: 2017-03-24 | C11: =K11+L11+M11+Table1[[#This Row],[Bounce Score]] ->  | D11: 193.3917279 | E11: 312 | F11: 1 | G11: 0 | H11: 1073 | I11: 1 | J11: 0 | K11: =PageViewScore(Table1[[#This Row],[Page Views]],view_max_value,view_rate)*SigDecay(D11,time_onset,time_decay,time_weight,1,0) ->  | L11: =ActionScore(Table1[[#This Row],[Conversions]],clicks_max_value,clicks_rate,clicks_base_value) -> 10 | M11: 0 | N11: =(1-Table1[[#This Row],[Bounce Rate]])*bounce_weight -> 0

Sheet Metrics Parameters
A1: Views | E1: Clicks | I1: Time Multiplier | M1: Read Coverage | P1: Bounce Rate
A2: Max Value | B2: Upper bound limit | C2: 100 | E2: Max Value | F2: Upper bound limit | G2: 100 | I2: Max Value | K2: 2 | M2: Weight | N2: 10 | P2: Weight | Q2: 20
A3: Target | B3: Set this target to the pageviews you feel the majority of your content will receive, or below. | C3: 1000 | E3: Base Value | F3: Value when clicks is 1 | G3: 10 | I3: Decay Rate | J3: How fast it falls from the max value to 1. The smaller the value, the slower it decause from Max to 1 | K3: 10
A4: Averages | B4: Your average pageviews. The Media Shower platform averages all sites across our network, so you can see how your results compare. | C4: =(SUM(Table1[Page Views]))/(COUNT(Table1[Page Views])) -> 4063.7 | E4: Target | F4: Set this target to the clicks you feel the majority of your content will receive, or below. | G4: 50 | I4: Onset | J4: How many days before it starts dropping from max value | K4: 60
E5: Averages | F5: Your average clicks. The Media Shower platform averages all sites across our network, so you can see how your results compare. | G5: =(SUM(Table1[Conversions]))/(COUNT(Table1[Conversions])) -> 128.9
A20: Views | B20: Score | E20: Clicks | F20: Score | I20: Days | J20: Multiplier | M20: Read Coverage | P20: Bounce Rate
A21: 10 | B21: =PageViewScore(A21,view_max_value,view_rate) -> 0.9900990099 | E21: 0 | F21: =ActionScore(E21,clicks_max_value,clicks_rate,clicks_base_value) -> 0 | I21: 1 | J21: =SigDecay(I21,time_onset,time_decay,time_weight,1,0) -> 1.997268039 | M21: 0 | N21: =M21*read_weight -> 0 | P21: 1 | Q21: =(1-P21)*bounce_weight -> 0
A22: 100 | B22: 9.090909091 | E22: 1 | F22: 10 | I22: 10 | J22: 1.993307149 | M22: 0.1 | N22: =M22*read_weight -> 1 | P22: 0.8 | Q22: =(1-P22)*bounce_weight -> 4
A23: 200 | B23: 16.66666667 | E23: 2 | F23: 11.76470588 | I23: 20 | J23: 1.98201379 | M23: 0.5 | N23: =M23*read_weight -> 5 | P23: 0.5 | Q23: =(1-P23)*bounce_weight -> 10
A24: 400 | B24: 28.57142857 | E24: 4 | F24: 15.09433962 | I24: 30 | J24: 1.952574127 | M24: 1 | N24: =M24*read_weight -> 10 | P24: 0.2 | Q24: =(1-P24)*bounce_weight -> 16
A25: 1000 | B25: 50 | E25: 8 | F25: 21.05263158 | I25: 40 | J25: 1.880797078 | P25: 0 | Q25: =(1-P25)*bounce_weight -> 20
A26: 2000 | B26: 66.66666667 | E26: 16 | F26: 30.76923077 | I26: 50 | J26: 1.731058579
A27: 4000 | B27: 80 | E27: 32 | F27: 44.44444444 | I27: 60 | J27: 1.5
E28: 64 | F28: 60.17699115 | I28: 70 | J28: 1.268941421
E29: 128 | F29: 74.57627119 | I29: 80 | J29: 1.119202922
E30: 256 | F30: 85.24590164 | I30: 90 | J30: 1.047425873
E31: =E30*2 -> 512 | F31: 91.97860963 | I31: 120 | J31: 1.002472623
I32: 160 | J32: 1.000045398
I33: 180 | J33: 1.000006144
I34: 360 | J34: 1
